bitfinex-derivatives/quotes_SOLF0:USTF0_20230102
["timestamp","ask_amount","ask_price","bid_price","bid_amount"]
[1672690299258,3.11,11.232,11.224,3.13]
[1672690299570,3.11,11.232,11.226,3.13]
[1672690300723,0.0663667,11.233,11.228,3.12]
[1672690310608,0.0663667,11.233,11.23,3.13]
[1672690310815,269.66973432,11.235,11.23,3.13]
[1672690313235,269.51822215,11.235,11.23,3.13]
[1672690313549,272.62822215,11.235,11.229,3.13]
[1672690318592,269.51822215,11.235,11.23,3.13]
[1672690321109,5.0,11.241,11.234,3.13]
[1672690322159,5.06469552,11.241,11.234,3.19872801]
[1672690326050,0.06469552,11.241,11.234,3.19872801]
[1672690326785,0.06469552,11.241,11.236,3.13]
[1672690333826,5.06469552,11.241,11.236,3.13]
[1672690334033,3.17469552,11.241,11.234,3.19872801]
[1672690334984,0.06469552,11.241,11.236,3.13]
[1672690337184,3.18469552,11.241,11.234,3.19872801]
[1672690341288,3.11,11.236,11.219,55.0]
[1672690341491,3.11,11.236,11.229,3.13]
[1672690341704,5.0,11.235,11.229,3.13]
[1672690341915,5.0,11.238,11.234,3.13]
[1672690342125,5.0,11.238,11.237,3.13]
[1672690342335,0.07011596,11.241,11.237,3.13]
[1672690342547,5.0,11.241,11.236,3.13]
[1672690343383,3.12,11.238,11.232,3.13]
[1672690343599,5.0,11.237,11.232,3.13]
[1672690347065,8.19023614,11.238,11.232,3.13]
[1672690349893,3.19023614,11.238,11.232,3.13]
[1672690359984,0.07023614,11.238,11.232,3.13]
[1672690362824,0.07023614,11.238,11.236,3.12]
[1672690363036,269.66950607,11.241,11.236,3.12]
[1672690369130,0.06950607,11.241,11.236,3.12]
[1672690369345,0.06950607,11.241,11.238,3.12]
[1672690369555,0.06032632,11.243,11.239,3.13]
[1672690369766,0.06887951,11.245,11.243,0.11270959]
[1672690369973,8.12,11.245,11.243,0.11270959]
[1672690371964,3.12,11.245,11.243,0.11270959]
[1672690372179,5.0,11.244,11.24,0.07056485]
[1672690373756,3.12,11.245,11.24,0.07056485]
[1672690381950,3.11,11.243,11.24,0.07056485]
[1672690382157,3.11,11.243,11.238,0.06793075]
[1672690397821,3.11,11.243,11.229,50.0]
[1672690398032,3.13,11.241,11.229,50.0]
[1672690398244,3.13,11.241,11.234,3.13]
[1672690398980,3.19219614,11.241,11.234,3.2000292]
[1672690403599,5.0,11.235,11.23,3.13]
[1672690406650,3.17454812,11.236,11.23,3.13]
[1672690408324,3.17454812,11.236,11.229,0.06791693]
[1672690408538,3.11,11.235,11.229,0.06791693]
[1672690409065,5.0,11.234,11.229,0.06791693]
[1672690412213,8.11,11.235,11.229,0.06791693]
[1672690414530,3.11,11.235,11.229,0.06791693]
[1672690422199,3.13,11.233,11.229,0.06791693]
[1672690429762,5.0,11.234,11.229,0.06791693]
[1672690430606,8.11,11.235,11.229,0.06791693]
[1672690430919,272.77454812,11.236,11.23,3.13]
[1672690436064,8.13,11.235,11.229,0.06791693]
[1672690436280,5.0,11.234,11.229,0.06791693]
[1672690437221,3.11,11.232,11.229,0.06791693]
[1672690437436,3.11,11.232,11.225,3.12]
[1672690437644,3.13,11.231,11.224,3.13]
[1672690438377,3.19786457,11.231,11.224,3.19018526]
[1672690439109,5.0,11.23,11.224,3.19018526]
[1672690442374,8.19786457,11.231,11.224,3.19018526]
[1672690447726,3.19786457,11.231,11.224,3.19018526]
[1672690450038,3.11,11.23,11.224,0.06018526]
[1672690450249,5.0,11.229,11.224,0.06018526]
[1672690452242,3.11,11.23,11.224,0.06018526]
[1672690455402,3.13,11.225,11.209,50.0]
[1672690455615,3.13,11.223,11.217,3.13]
[1672690456663,3.13,11.223,11.216,0.07006055]
[1672690456664,3.11,11.222,11.216,0.07006055]
[1672690459606,3.13,11.223,11.217,3.13]
[1672690463710,3.11,11.222,11.216,0.07006055]
[1672690502703,3.13,11.223,11.216,3.20006055]
[1672690502915,5.0,11.222,11.216,3.20006055]
[1672690503338,3.13,11.223,11.216,3.20006055]
[1672690514896,3.11,11.221,11.216,0.07006055]
[1672690515950,3.11,11.222,11.216,0.07006055]
[1672690553987,3.1,11.221,11.217,3.13]
[1672690578475,3.1,11.218,11.216,0.07006055]
[1672690578682,3.1,11.218,11.213,3.11]
[1672690578893,3.1,11.218,11.213,3.1803516]
[1672690580365,5.0,11.215,11.211,3.1]
[1672690581622,3.13,11.216,11.211,3.1]
[1672690585406,3.13,11.215,11.21,3.13]
[1672690585937,3.1,11.216,11.211,3.13]
[1672690594444,3.13,11.214,11.209,3.19746365]
[1672690597810,3.13,11.213,11.209,0.06746365]
[1672690603487,3.13,11.21,11.209,0.00746365]
[1672690603800,3.13,11.21,11.206,3.11]
[1672690606529,3.13,11.207,11.201,3.11]
[1672690606846,3.13,11.204,11.199,3.11]
[1672690612101,3.13,11.202,11.198,3.19993249]
[1672690613995,3.12,11.203,11.198,0.06993249]
[1672690615258,3.13,11.202,11.198,0.06993249]
[1672690615566,5.0,11.201,11.198,0.06993249]
[1672690615782,5.0,11.201,11.196,0.06009464]
[1672690617572,3.13,11.2,11.196,0.06009464]
[1672690618201,8.14,11.201,11.196,0.06009464]
[1672690619985,0.06351956,11.202,11.199,3.14]
[1672690620194,0.0667744,11.204,11.199,3.14]
[1672690620407,0.06974492,11.205,11.199,3.14]
[1672690636063,3.14,11.213,11.204,3.14]
[1672690636273,3.14,11.213,11.207,3.14]
[1672690636905,3.14,11.212,11.205,3.11]
[1672690637110,3.20185091,11.212,11.205,3.17485591]
[1672690641634,3.12,11.21,11.205,0.06485591]
[1672690652351,0.06185091,11.212,11.206,3.11]
[1672690652352,3.20185091,11.212,11.206,3.11]
[1672690652664,5.0,11.213,11.207,3.14]
[1672690653190,3.12,11.214,11.207,3.14]
[1672690653405,3.14,11.215,11.209,3.14]
[1672690653714,50.0,11.221,11.214,3.14]
[1672690653715,3.12,11.221,11.214,3.14]
[1672690654663,3.18661735,11.221,11.214,3.20207773]
[1672690665484,3.13,11.218,11.21,3.14]
[1672690665803,3.14,11.216,11.209,3.14]
[1672690666644,3.20096537,11.216,11.209,3.20967262]
[1672690679993,3.14,11.215,11.209,0.06967262]
[1672690680307,269.6,11.214,11.209,0.06967262]
[1672690680517,5.0,11.213,11.209,0.06967262]
[1672690682517,269.6,11.214,11.209,0.06967262]
[1672690684923,5.0,11.213,11.2,50.0]
[1672690685137,3.12,11.209,11.202,3.14]
[1672690685979,3.14,11.207,11.202,0.06965241]
[1672690686191,5.06834226,11.209,11.203,3.11]
[1672690686406,0.06834226,11.209,11.204,5.0]
[1672690687245,0.06834226,11.209,11.205,3.14]
[1672690696808,3.20834226,11.209,11.202,3.20965241]
[1672690697011,0.06834226,11.209,11.203,3.12]
[1672690697225,0.06834226,11.209,11.204,5.0]
[1672690697643,0.06834226,11.209,11.203,3.12]
[1672690708988,3.14,11.208,11.202,3.17965241]
[1672690721390,3.14,11.205,11.202,0.06965241]
[1672690721596,3.14,11.205,11.2,0.0689119]
[1672690721803,3.14,11.205,11.199,0.06388385]
[1672690725593,3.20847626,11.206,11.2,3.11]
[1672690725901,3.14,11.212,11.206,5.0]
[1672690726532,3.14,11.212,11.205,3.14]
[1672690726953,3.21071202,11.212,11.205,3.21037382]
[1672690731583,0.07071202,11.212,11.208,3.12]
[1672690731998,0.07071202,11.212,11.209,3.14]
[1672690732209,0.06922449,11.214,11.209,3.14]
[1672690732521,0.07125122,11.215,11.209,3.14]
[1672690734101,3.13,11.213,11.208,0.06701252]
[1672690737359,3.14,11.214,11.208,3.20701252]
[1672690737673,0.07125122,11.215,11.209,3.14]
[1672690737884,0.07125122,11.215,11.21,53.14]
[1672690738095,0.07125122,11.215,11.212,3.14]
[1672690738304,0.06451176,11.217,11.212,3.14]
[1672690738830,3.14,11.216,11.211,0.06984663]
[1672690739039,3.12,11.214,11.211,0.06984663]
[1672690739353,3.12,11.214,11.209,0.06950902]
[1672690739562,3.12,11.214,11.208,0.06792837]
[1672690740300,269.66753578,11.215,11.209,3.14]
[1672690741035,269.52590076,11.215,11.209,3.14]
[1672690750596,0.06753578,11.215,11.211,3.11]
[1672690750809,0.06753578,11.215,11.214,3.12]
[1672690751013,3.14,11.221,11.214,3.12]
[1672690751958,3.20509326,11.221,11.214,3.18527001]
[1672690754066,0.06509326,11.221,11.216,3.14]
[1672690754280,0.06509326,11.221,11.217,3.14]
[1672690756695,0.06509326,11.221,11.22,3.14]
[1672690757011,272.74,11.23,11.221,5.06]
[1672690757221,272.74,11.23,11.223,3.14]
[1672690757746,3.14,11.23,11.223,3.14]
[1672690757952,3.20837988,11.23,11.223,3.20824172]
[1672690758379,3.14,11.227,11.223,0.06824172]
[1672690759324,3.14,11.225,11.223,0.06824172]
[1672690759534,3.14,11.225,11.22,0.06859595]
[1672690760481,3.13,11.224,11.22,0.06859595]
[1672690763317,3.14,11.222,11.22,0.06859595]
[1672690763527,3.14,11.222,11.217,0.0639857]
[1672690763735,3.14,11.222,11.216,0.07013337]
[1672690772349,269.6,11.231,11.22,50.0]
[1672690772671,3.14,11.229,11.222,3.14]
[1672690773083,5.0,11.23,11.221,5.0]
[1672690773084,61.3468,11.247,11.227,3.12]
[1672690773297,50.0,11.241,11.221,5.0]
[1672690773509,0.06971357,11.235,11.232,3.11]
[1672690773716,0.07031013,11.237,11.234,3.14]
[1672690773923,0.06780511,11.239,11.235,3.14]
[1672690774136,3.14,11.242,11.235,3.14]
[1672690774137,5.0671321,11.241,11.235,3.14]
[1672690774557,52.6854,11.246,11.24,3.14]
[1672690774767,322.2854,11.246,11.24,3.14]
[1672690775501,3.14,11.241,11.231,3.14]
[1672690775710,3.14,11.234,11.222,5.0]
[1672690775923,5.0,11.233,11.227,3.11]
[1672690778132,0.06408033,11.234,11.229,3.14]
[1672690799245,0.06408033,11.234,11.228,6.25]
[1672690823317,0.06408033,11.234,11.231,6.25]
[1672690823526,0.06665292,11.236,11.231,6.25]
[1672690823737,5.06665292,11.236,11.231,6.25]
[1672690824363,0.06665292,11.236,11.231,3.12]
[1672690824886,0.06665292,11.236,11.229,0.06638888]
[1672690824887,0.06665292,11.236,11.233,3.12]
[1672690825102,0.06155955,11.238,11.236,0.11039575]
[1672690825312,0.0667981,11.241,11.236,0.11039575]
[1672690825523,0.0667981,11.241,11.237,3.12]
[1672690827306,0.0667981,11.241,11.24,3.1]
[1672690827519,0.06130899,11.244,11.24,3.1]
[1672690827730,5.06106014,11.246,11.24,3.1]
[1672690828774,0.06106014,11.246,11.241,3.12]
[1672690828985,0.06106014,11.246,11.245,3.12]
[1672690829200,0.06286355,11.249,11.245,3.12]
[1672690829515,0.06168656,11.251,11.245,3.12]
[1672690830043,3.12,11.253,11.251,0.00463092]
[1672690830876,5.0,11.252,11.245,3.12]
[1672690831089,5.06842397,11.252,11.245,3.18548937]
[1672690833194,0.06842397,11.252,11.245,3.18548937]
[1672690835504,0.06842397,11.252,11.248,3.1]
[1672690836031,0.06842397,11.252,11.247,3.12]
[1672690839707,3.18842397,11.252,11.245,0.00548937]
[1672690839918,3.12,11.246,11.233,3.11]
[1672690840128,5.0,11.239,11.233,3.11]
[1672690842442,3.18113435,11.24,11.233,3.11]
[1672690850006,3.18113435,11.24,11.234,3.12]
[1672690854103,3.12,11.239,11.232,3.1786921]
[1672690855260,0.06113435,11.24,11.232,3.1786921]
[1672690855261,3.12,11.236,11.232,0.0686921]
[1672690855471,5.0,11.235,11.232,0.0686921]
[1672690855681,5.0,11.235,11.23,0.06877051]
[1672690856732,3.12,11.234,11.23,0.06877051]
[1672690864512,6.21,11.235,11.23,0.06877051]
[1672690864721,5.0,11.234,11.23,0.06877051]
[1672690866292,6.21,11.235,11.23,50.06877051]
[1672690866499,0.00327924,11.237,11.234,6.23]
[1672690866710,6.2,11.244,11.236,6.25]
[1672690867237,269.6,11.245,11.238,6.23]
[1672690867446,0.06887008,11.245,11.238,6.30040177]
[1672690867667,5.06887008,11.245,11.238,6.30040177]
[1672690869027,0.06887008,11.245,11.238,6.30040177]
[1672690869241,0.06887008,11.245,11.239,6.25]
[1672690885110,6.25,11.244,11.238,0.07040177]
[1672690885425,5.0,11.241,11.238,0.07040177]
[1672690885635,5.0,11.241,11.236,0.0688156]
[1672690885846,5.0,11.241,11.235,0.06625544]
[1672690890995,11.30698669,11.242,11.235,0.06625544]
[1672690897088,0.06698669,11.242,11.237,6.25]
[1672690897717,0.06698669,11.242,11.239,6.25]
[1672690897926,0.06994865,11.244,11.239,6.25]
[1672690898132,0.06215249,11.245,11.239,6.25]
[1672690899505,0.06215249,11.245,11.239,3.12]
[1672690907180,0.06215249,11.245,11.241,3.11]
[1672690907389,0.06215249,11.245,11.243,3.11]
[1672690907599,322.6496,11.25,11.243,3.11]
[1672690907600,322.6496,11.25,11.245,0.0864562]
[1672690923362,3.12,11.248,11.245,0.0864562]
[1672690923573,5.0,11.247,11.245,0.0864562]
[1672690923785,3.1,11.246,11.23,50.0]
[1672690923993,3.1,11.244,11.237,3.12]
[1672690924832,3.16128747,11.244,11.237,3.18910574]
[1672690926833,0.06128747,11.244,11.243,3.12]
[1672690927144,0.0641177,11.247,11.243,3.12]
[1672690927355,5.06983225,11.249,11.244,3.11]
[1672690927562,5.06983225,11.249,11.241,0.06788418]
[1672690927769,3.1,11.244,11.241,0.06788418]
[1672690927985,3.1,11.244,11.239,0.06823221]
[1672690928190,3.1,11.244,11.238,0.0704511]
[1672690932716,272.7,11.244,11.238,0.0704511]
[1672690932927,5.0,11.243,11.238,0.0704511]
[1672690934293,3.1,11.241,11.238,0.0704511]
[1672690934499,3.1,11.241,11.236,0.0714293]
[1672690935449,5.06387935,11.243,11.236,3.1914293]
[1672690935450,3.12,11.242,11.236,3.1914293]
[1672690950061,8.16387935,11.243,11.236,3.1914293]
[1672690951427,8.16387935,11.243,11.236,3.00809604]
[1672690952477,8.16387935,11.243,11.236,3.07548397]
[1672690960258,3.16387935,11.243,11.236,3.07548397]
[1672690963724,5.0,11.242,11.236,3.07548397]
[1672690968868,8.16387935,11.243,11.236,3.07548397]
[1672690972442,3.1,11.239,11.227,575.0]
[1672690972655,3.1,11.236,11.229,3.11]
[1672690972866,5.0,11.235,11.229,3.11]
[1672690974339,3.16544186,11.236,11.229,3.11]
[1672690976652,0.06544186,11.236,11.231,3.12]
[1672690977170,0.06544186,11.236,11.235,3.12]
[1672690977386,0.06729482,11.239,11.235,3.12]
[1672690977597,5.0,11.239,11.235,3.12]
[1672690978326,0.06178419,11.241,11.235,3.12]
[1672690983479,0.06178419,11.241,11.239,3.11]
[1672690983794,0.06458219,11.244,11.239,3.11]
[1672690984007,5.06458219,11.244,11.239,3.11]
[1672690984949,0.06458219,11.244,11.239,3.11]
[1672690991570,5.06458219,11.244,11.239,3.11]
[1672690991781,8.16458219,11.244,11.237,3.12]
[1672690995349,3.16458219,11.244,11.237,3.12]
[1672691005963,3.1,11.242,11.236,0.06950347]
[1672691006175,5.0,11.241,11.236,0.06950347]
[1672691007959,3.1,11.242,11.236,0.06950347]
[1672691030030,3.12,11.243,11.236,3.18950347]
[1672691030764,5.0,11.242,11.236,3.18950347]
[1672691036753,3.12,11.243,11.236,3.18950347]
[1672691040010,3.1,11.241,11.236,0.06950347]
[1672691045368,3.12,11.243,11.237,3.12]
[1672691045579,5.0,11.242,11.238,3.12]
[1672691045994,5.06458219,11.244,11.238,3.12]
[1672691049888,0.06458219,11.244,11.238,3.12]
[1672691054226,5.06458219,11.244,11.238,3.12]
[1672691054437,0.06458219,11.244,11.238,3.12]
[1672691060109,3.17458219,11.244,11.237,3.12]
[1672691063778,3.17458219,11.244,11.236,0.06950347]
[1672691063779,0.06458219,11.244,11.24,50.0]
[1672691063983,12.48,11.257,11.243,5.0]
[1672691063984,3.12,11.248,11.243,5.0]
[1672691064398,3.12,11.248,11.242,3.12]
[1672691080054,3.17422843,11.249,11.243,3.12]
[1672691080266,3.17422843,11.249,11.244,5.0]
[1672691080579,3.17422843,11.249,11.243,3.12]
[1672691094029,3.1,11.248,11.244,3.12]
[1672691101272,0.06422843,11.249,11.247,3.12]
[1672691101486,0.07127749,11.252,11.248,3.12]
[1672691101805,3.12,11.254,11.248,3.12]
[1672691101806,5.0,11.253,11.248,3.12]
[1672691103277,8.18527449,11.254,11.248,3.12]
[1672691104744,3.12,11.252,11.248,3.12]
[1672691106423,3.12,11.252,11.246,0.06357561]
[1672691106638,5.06527449,11.254,11.246,0.06357561]
[1672691106639,3.12,11.249,11.246,0.00357561]
[1672691106844,8.12,11.248,11.243,3.12]
[1672691107163,3.12,11.244,11.237,3.12]
[1672691107371,3.1,11.242,11.237,3.12]
[1672691107898,8.16312068,11.243,11.239,3.12]
[1672691109894,3.16312068,11.243,11.239,3.12]
[1672691113887,0.06312068,11.243,11.238,3.12]
[1672691139942,0.06312068,11.243,11.236,0.06044351]
[1672691140151,3.16312068,11.243,11.237,3.12]
[1672691147613,0.06312068,11.243,11.24,50.0]
[1672691147825,0.07010213,11.245,11.241,3.12]
[1672691148031,0.07010213,11.245,11.242,5.0]
[1672691148247,5.069929,11.247,11.242,5.0]
[1672691148564,0.069929,11.247,11.242,3.12]
[1672691148773,0.069929,11.247,11.243,5.0]
[1672691149188,0.069929,11.247,11.242,3.12]
[1672691161485,0.069929,11.247,11.245,3.1]
[1672691161694,269.66147605,11.25,11.245,3.1]
[1672691165587,0.06147605,11.25,11.245,3.1]
[1672691167265,0.06147605,11.25,11.247,3.12]
[1672691167478,0.0671346,11.252,11.247,3.12]
[1672691167686,5.06004204,11.253,11.247,3.12]
[1672691168213,8.18004204,11.253,11.246,3.12]
[1672691170841,3.18004204,11.253,11.246,3.12]
[1672691188503,0.06004204,11.253,11.25,3.12]
[1672691188818,5.07123469,11.255,11.25,3.12]
[1672691190288,267.0,11.261,11.255,0.107089]
[1672691190503,5.0,11.26,11.255,3.227089]
[1672691190817,267.0,11.261,11.255,3.227089]
[1672691191869,0.06203716,11.262,11.257,3.12]
[1672691192077,0.06203716,11.262,11.258,3.12]
[1672691193553,0.06203716,11.262,11.26,3.12]
[1672691193763,0.07144528,11.265,11.26,3.12]
[1672691196173,0.07144528,11.265,11.257,0.06954338]
[1672691196388,0.07144528,11.265,11.262,3.12]
[1672691196599,0.06794348,11.267,11.263,5.0]
[1672691196808,5.0,11.268,11.263,5.0]
[1672691197222,321.44456502,11.269,11.264,3.12]
[1672691197432,318.32456502,11.269,11.264,3.12]
[1672691199539,0.06346502,11.269,11.264,3.12]
[1672691199857,0.06346502,11.269,11.268,3.12]
[1672691200061,0.06445136,11.272,11.268,3.12]
[1672691200275,5.0,11.274,11.268,3.12]
[1672691200482,5.07067951,11.274,11.268,3.12]
[1672691203007,0.07067951,11.274,11.268,3.12]
[1672691203743,270.12,11.275,11.274,0.11902033]
[1672691203953,5.0,11.274,11.269,5.0]
[1672691204268,5.0,11.274,11.268,3.12]
[1672691204576,270.12,11.275,11.268,3.12]
[1672691204792,270.18587108,11.275,11.268,3.12]
[1672691205737,5.0,11.274,11.268,3.12]
[1672691207632,270.18587108,11.275,11.268,3.12]
[1672691207945,5.0,11.274,11.268,3.12]
[1672691209729,270.18587108,11.275,11.268,3.12]
[1672691210993,5.0,11.274,11.268,3.12]
[1672691211204,3.12,11.271,11.259,50.0]
[1672691211413,3.12,11.269,11.262,3.12]
[1672691211622,5.0,11.268,11.262,3.12]
[1672691212884,8.18790027,11.269,11.262,3.12]
[1672691214252,3.18790027,11.269,11.262,3.12]
[1672691214462,0.06790027,11.269,11.264,3.12]
[1672691220452,3.12,11.268,11.262,3.12]
[1672691222235,0.06790027,11.269,11.263,3.12]
[1672691222871,5.06790027,11.269,11.263,3.12]
[1672691223397,0.06790027,11.269,11.263,3.12]
[1672691228342,3.1,11.268,11.262,3.12]
[1672691228548,5.0,11.267,11.262,3.12]
[1672691229181,3.1,11.268,11.262,3.12]
[1672691232969,8.12,11.267,11.261,0.06992996]
[1672691234331,3.12,11.267,11.261,0.06992996]
[1672691236651,0.06790027,11.269,11.263,3.1]
[1672691238957,8.18790027,11.269,11.262,3.12]
[1672691240114,3.18790027,11.269,11.262,3.12]
[1672691242530,0.06790027,11.269,11.264,3.12]
[1672691245471,0.06790027,11.269,11.265,3.12]
[1672691245681,0.06790027,11.269,11.267,3.12]
[1672691245887,0.07034514,11.272,11.267,3.12]
[1672691246203,0.06668232,11.273,11.267,3.12]
[1672691249571,0.06668232,11.273,11.27,3.12]
[1672691249781,0.06601959,11.275,11.27,3.12]
[1672691249993,0.06891105,11.276,11.27,3.12]
[1672691259237,3.12,11.277,11.276,0.1064951]
[1672691263864,3.12,11.279,11.276,0.1064951]
[1672691264284,0.07052509,11.28,11.276,0.1064951]
[1672691267857,0.07052509,11.28,11.276,3.2264951]
[1672691268171,0.07052509,11.28,11.277,3.12]
[1672691268382,0.06253327,11.282,11.277,3.12]
[1672691268588,0.06253327,11.282,11.28,3.12]
[1672691268804,12.46,11.296,11.28,3.12]
[1672691268805,0.06599057,11.285,11.281,5.0]
[1672691269014,8.12,11.286,11.279,3.1816515]
[1672691269222,3.12,11.281,11.279,0.0016515]
[1672691269434,3.12,11.281,11.276,0.1064951]
[1672691269643,5.0,11.28,11.276,0.1064951]
[1672691270904,3.12,11.281,11.276,0.1064951]
[1672691280260,3.18050951,11.282,11.276,3.2064951]
[1672691283945,3.12,11.28,11.276,0.1064951]
[1672691300128,3.18050951,11.282,11.276,0.1064951]
[1672691310005,3.12,11.281,11.276,0.1064951]
[1672691310216,5.0,11.28,11.276,0.1064951]
[1672691312739,3.12,11.281,11.276,0.1064951]
[1672691320095,0.06050951,11.282,11.279,50.0]
[1672691320305,267.06234136,11.284,11.28,5.0]
[1672691320725,267.06234136,11.284,11.279,50.0]
[1672691321776,267.06234136,11.284,11.278,3.1]
[1672691322089,267.06234136,11.284,11.279,50.0]
[1672691322511,267.06234136,11.284,11.278,3.1]
[1672691323457,8.12,11.283,11.277,0.06894532]
[1672691323663,5.0,11.282,11.277,0.06894532]
[1672691325244,8.12,11.282,11.277,0.06894532]
[1672691334072,3.12,11.282,11.277,0.06894532]
[1672691353197,270.16234136,11.284,11.277,3.18894532]
[1672691356453,5.0,11.283,11.277,3.18894532]
[1672691356659,3.1,11.282,11.277,0.06894532]
[1672691361385,3.1,11.279,11.271,3.12]
[1672691361603,3.12,11.273,11.266,3.12]
[1672691361811,5.0,11.272,11.266,3.12]
[1672691362127,8.11,11.272,11.266,3.12]
[1672691363275,3.12,11.27,11.265,0.06980985]
[1672691363489,3.12,11.269,11.265,0.06980985]
[1672691364331,3.1,11.266,11.259,3.12]
[1672691365384,3.16473278,11.266,11.259,3.18283872]
[1672691368745,0.06473278,11.266,11.261,3.1]
[1672691368956,0.06473278,11.266,11.262,5.0]
[1672691369381,0.06473278,11.266,11.261,3.1]
[1672691370955,3.18473278,11.266,11.259,53.18283872]
[1672691375366,0.06473278,11.266,11.261,3.12]
[1672691375576,0.06473278,11.266,11.262,5.0]
[1672691376314,0.06473278,11.266,11.262,8.12]
[1672691376524,0.06473278,11.266,11.264,3.12]
[1672691376731,0.06794516,11.269,11.264,3.12]
[1672691376943,5.06794516,11.269,11.264,3.12]
[1672691377363,0.06794516,11.269,11.264,3.12]
[1672691377994,0.06794516,11.269,11.265,3.12]
[1672691378626,3.1,11.272,11.269,0.05393142]
[1672691382935,3.12,11.27,11.269,0.05393142]
[1672691383146,5.0,11.269,11.261,3.12]
[1672691383357,3.12,11.268,11.261,3.12]
[1672691384305,3.18594561,11.268,11.261,3.19050339]
[1672691384725,3.12,11.266,11.261,0.07050339]
[1672691402484,267.0,11.267,11.261,3.17050339]
[1672691402694,0.06594561,11.268,11.263,3.1]
[1672691403535,0.06594561,11.268,11.264,3.12]
[1672691404270,0.06594561,11.268,11.266,3.12]
[1672691404481,3.12,11.276,11.267,53.12]
[1672691404695,5.0,11.275,11.271,3.12]
[1672691405005,5.0,11.275,11.272,5.0]
[1672691405216,5.0,11.277,11.272,5.0]
[1672691405418,69.68775327,11.278,11.271,3.18858586]
[1672691408266,66.56775327,11.278,11.274,3.12]
[1672691408789,66.56775327,11.278,11.276,3.12]
[1672691408993,66.5,11.278,11.276,3.12]
[1672691410893,66.5,11.278,11.277,3.12]
[1672691411103,1.27634438,11.278,11.277,3.12]
[1672691413835,4.438e-05,11.278,11.277,3.12]
[1672691426341,317.5869,11.288,11.278,5.0]
[1672691426555,317.5869,11.288,11.283,5.0]
[1672691427188,317.5869,11.288,11.282,3.12]
[1672691432019,50.5869,11.288,11.282,3.12]
[1672691434334,50.5869,11.288,11.281,6.20111931]
[1672691435801,56.7769,11.288,11.281,0.07111931]
[1672691436644,323.7769,11.288,11.281,0.07111931]
[1672691439168,50.5869,11.288,11.281,6.20111931]
[1672691447566,0.0660841,11.289,11.281,6.20111931]
[1672691447779,6.19,11.292,11.289,0.1369533]
[1672691448099,5.0,11.291,11.289,0.1369533]
[1672691448411,11.19,11.292,11.289,0.1369533]
[1672691449570,6.19,11.292,11.289,0.1369533]
[1672691457869,5.0,11.291,11.289,5.33e-05]
[1672691458393,6.19,11.292,11.289,5.33e-05]
[1672691460075,267.0,11.293,11.289,5.33e-05]
[1672691460076,273.16,11.293,11.289,5.33e-05]
[1672691461336,11.19,11.292,11.283,6.13]
[1672691461549,6.19,11.288,11.279,61.14]
[1672691461759,5.0,11.287,11.279,61.14]
[1672691462073,5.0,11.287,11.279,56.14]
[1672691462489,5.06737149,11.287,11.279,56.20598967]
[1672691462906,5.06737149,11.287,11.279,6.20598967]
[1672691463544,325.23697149,11.287,11.279,6.20598967]
[1672691465855,6.17,11.286,11.279,0.06598967]
[1672691466063,6.16,11.284,11.279,0.06598967]